Workbook

Sheet MSU
B1: Tommi Malinen | E1: 20.8.1987 Savonlinna
B2: SUPERPESIS | E2: Runkosarja | I2: Kärkilyönnit (KL), pesänvälit | P2: Runkosarja TOP-30 | U2: Alempi loppusarja | AB2: Ylempi loppusarja TOP-10 | AG2: Play off, voitot, voittoprosentti | AL2: Arvo-ottelut | AO2: Mitalit
B3: Vuosi | C3: Sija | D3: Seura | E3: OTT | F3: KUN | G3: LÖI | H3: TOI | I3: KL | J3: 0 > 1 | K3: 1 > 2 | L3: 2 > 3 | M3: 3 > k | N3: KL-% | P3: LÖI | Q3: TOI | R3: L+T | S3: KL | U3: OTT | V3: KUN | W3: LÖI | X3: TOI | Y3: KL | Z3: KL-% | AB3: LÖI | AC3: TOI | AD3: L+T | AE3: KL | AG3: Puolivälierät | AH3: Välierät | AI3: Pronssi | AJ3: Finaalit | AL3: IL | AM3: LL | AN3: hSM | AO3: K | AP3: H | AQ3: P
B4: 2004 | C4: 5. | D4: Paukku | F4: suomensarja
B5: 2005 | C5: 4. | D5: Paukku | F5: suomensarja
B6: 2006 | C6: 2. | D6: Paukku | F6: suomensarja
B7: 2007 | C7: 4. | D7: Tahko 2 | F7: suomensarja
B8: 2007 | C8: 12. | D8: RiiPe | F8: ykköspesis
B9: 2008 | C9: 7. | D9: Tahko 2 | F9: suomensarja
B10: 2009 | C10: 7. | D10: LaLu | F10: suomensarja
B11: 2010 | C11: 3. | D11: Manse PP | F11: suomensarja
B12: 2011 | C12: 6. | D12: Tahko 2 | F12: suomensarja
B13: 2012 | C13: 2. | D13: Manse PP | F13: suomensarja
B14: 2013 | C14: 1. | D14: Manse PP | F14: suomensarja
B15: 2014 | C15: 8. | D15: Manse PP | F15: ykköspesis
B16: 2015 | C16: 3. | D16: Manse PP | F16: ykköspesis | U16: 4 | V16: 0 | W16: 2 | X16: 0 | Y16: 5 | Z16: 23.8 % | AA16: =PRODUCT(Y16/Z16) -> 21.00840336
B17: 2016 | C17: 3. | D17: Manse PP* | F17: ykköspesis | U17: 5 | V17: 0 | W17: 9 | X17: 0 | Y17: 18 | Z17: 48.6 % | AA17: =PRODUCT(Y17/Z17) -> 37.03703704
B18: 2017 | C18: 4. | D18: Manse PP* | F18: ykköspesis
B19: 2018 | C19: 1. | D19: LP | F19: suomensarja
B20: 2019 | C20: 1. | D20: LP | F20: suomensarja
B21: 2020 | C21: 12. | D21: Manse PP | E21: 19 | F21: 0 | G21: 29 | H21: 0 | I21: 44 | J21: 1 | K21: 5 | L21: 9 | M21: 29 | N21: 40.0 % | O21: 110 | P21: 27.
B22: 2021 | C22: 5. | D22: LP | F22: ykköspesis
B23: 2022 | C23: 8. | D23: LP | F23: ykköspesis
B24: Yhteensä | E24: =SUM(E17:E23) -> 19 | F24: 0 | G24: 29 | H24: 0 | I24: 44 | J24: 1 | K24: 5 | L24: 9 | M24: 29 | N24: =PRODUCT(I24/O24) -> 40.0 % | O24: =SUM(O16:O23) -> 110 | P24: 0-0-0 | Q24: 0-0-0 | R24: 0-0-0 | S24: 0-0-0 | U24: =SUM(U4:U23) -> 9 | V24: =SUM(V4:V23) -> 0 | W24: 11 | X24: 0 | Y24: 23 | Z24: =PRODUCT(Y24/AA24) -> 39.6 % | AA24: =SUM(AA4:AA23) -> 5804.5 % | AB24: 0-0-0 | AC24: 0-0-0 | AD24: 0-0-0 | AE24: 0-0-0 | AG24: 0/0 | AH24: 0/0 | AI24: 0/0 | AJ24: 0/0 | AL24: =SUM(AL4:AL23) -> 0 | AM24: 0 | AN24: 0 | AO24: 0 | AP24: 0 | AQ24: 0
AG25: 0.0 % | AH25: 0.0 % | AI25: 0.0 % | AJ25: 0.0 %
B26: Pesispörssi | D26: =SUM(F24:H24)+((I24-F24-G24)/3)+(E24/3)+(AL24*25)+(AM24*25)+(AN24*10)+(AO24*25)+(AP24*20)+(AQ24*15) -> 40.3
B28: URA SUPERISSA | E28: OTT | F28: KUN | G28: LÖI | H28: TOI | I28: KL | K28: ka/L | L28: ka/T | M28: ka/KL | N28: KL-% | P28: ENSIMMÄISET RUNKOSARJASSA | AG28: ENSIMMÄISET PUDOTUSPELEISSÄ | AL28: YLEISÖ
B29: Runkosarja | E29: =PRODUCT(E24) -> 19 | F29: =PRODUCT(F24) -> 0 | G29: =PRODUCT(G24) -> 29 | H29: =PRODUCT(H24) -> 0 | I29: =PRODUCT(I24) -> 44 | K29: =PRODUCT((F29+G29)/E29) -> 1.53 | L29: =PRODUCT(H29/E29) -> 0.00 | M29: =PRODUCT(I29/E29) -> 2.32 | N29: =PRODUCT(N24) -> 40.0 % | O29: =PRODUCT(O24) -> 110 | P29: Ottelu | R29: 03.07. 2020 KPL - Manse PP 2-1 (7-4, 4-7, 1-0) | AA29: 1. ottelu | AC29: 26 v 10 kk 13 pv | AG29: Ottelu
B30: Ylempi loppusarja | P30: Lyöty | R30: 03.07. 2020 KPL - Manse PP 2-1 (7-4, 4-7, 1-0) | AA30: 1. ottelu | AC30: 26 v 10 kk 13 pv | AG30: Lyöty
B31: Alempi loppusarja | E31: 9 | F31: 0 | G31: 11 | H31: 0 | I31: 23 | K31: =PRODUCT((F31+G31)/E31) -> 1.22 | L31: =PRODUCT(H31/E31) -> 0.00 | M31: =PRODUCT(I31/E31) -> 2.56 | N31: =PRODUCT(I31/O31) -> 39.6 % | O31: =PRODUCT(AA24) -> 58.0454404 | P31: Tuotu | AG31: Tuotu
B32: KAIKKI | E32: =SUM(E29:E31) -> 28 | F32: =SUM(F29:F31) -> 0 | G32: =SUM(G29:G31) -> 40 | H32: =SUM(H29:H31) -> 0 | I32: =SUM(I29:I31) -> 67 | K32: =PRODUCT((F32+G32)/E32) -> 1.43 | L32: =PRODUCT(H32/E32) -> 0.00 | M32: =PRODUCT(I32/E32) -> 2.39 | N32: =PRODUCT(I32/O32) -> 39.9 % | O32: =SUM(O29:O31) -> 168.0454404 | P32: Kunnari | AG32: Kunnari
B34: Seurat | D34: Paukku = Hämeenlinnan Paukku (1961), kasvattajaseura | N34: RiiPe = Riihimäen Pesis (1999) | V34: Manse PP = Manse PP, Tampere (2005) | AG34: LP = Loimaan Palloilijat Junioripesis (2003)
D35: Tahko = Hyvinkään Tahko (1915) | N35: LaLu = Lammin Luja (1939) | V35: Manse PP* = Manse PP Edustus (2015)

Sheet MYP, MSS
B1: Tommi Malinen | E1: 20.8.1987 Savonlinna
B2: YKKÖSPESIS | E2: Runkosarja | L2: Runkosarja TOP-10 | Q2: Jatkosarjat | X2: SUOMENSARJA | AA2: Runkosarja | AH2: Runkosarja TOP-10 | AM2: Jatkosarjat
B3: Vuosi | C3: Sija | D3: Seura | E3: OTT | F3: KUN | G3: LÖI | H3: TOI | I3: KL | J3: KL-% | L3: LÖI | M3: TOI | N3: L+T | O3: KL | Q3: OTT | R3: KUN | S3: LÖI | T3: TOI | U3: KL | V3: KL-% | X3: Vuosi | Y3: Sija | Z3: Seura | AA3: OTT | AB3: KUN | AC3: LÖI | AD3: TOI | AE3: KL | AF3: KL-% | AH3: LÖI | AI3: TOI | AJ3: L+T | AK3: KL | AM3: OTT | AN3: KUN | AO3: LÖI | AP3: TOI | AQ3: KL | AR3: KL-%
X4: 2004 | Y4: 5. | Z4: Paukku | AA4: 14 | AB4: 1 | AC4: 20 | AD4: 3 | AE4: 40 | AF4: 46.0 % | AG4: 87
X5: 2005 | Y5: 4. | Z5: Paukku | AA5: 15 | AB5: 5 | AC5: 42 | AD5: 17 | AE5: 78 | AF5: 61.9 % | AG5: 126 | AH5: 2. | AJ5: 2.
X6: 2006 | Y6: 2. | Z6: Paukku | AA6: 16 | AB6: 3 | AC6: 52 | AD6: 13 | AE6: 74 | AF6: 60.7 % | AG6: 122 | AH6: 1. | AJ6: 1. | AM6: 4 | AN6: 1 | AO6: 7 | AP6: 1 | AQ6: 15 | AR6: 51.7 % | AS6: 29
B7: 2007 | C7: 12. | D7: RiiPe | E7: 16 | F7: 0 | G7: 15 | H7: 2 | I7: 30 | J7: 41.1 % | K7: 73 | Q7: 2 | R7: 0 | S7: 3 | T7: 1 | U7: 5 | V7: 31.3 % | W7: 16 | X7: 2007 | Y7: 4. | Z7: Tahko 2 | AA7: 8 | AB7: 5 | AC7: 19 | AD7: 11 | AE7: 61 | AF7: 75.3 % | AG7: 81 | AM7: 1 | AN7: 1 | AO7: 3 | AP7: 1 | AQ7: 6 | AR7: 75.0 % | AS7: 8
X8: 2008 | Y8: 7. | Z8: Tahko 2 | AA8: 15 | AB8: 2 | AC8: 28 | AD8: 13 | AE8: 87 | AF8: 70.2 % | AG8: 124 | AH8: 7. | AJ8: 9. | AK8: 6.
X9: 2009 | Y9: 7. | Z9: LaLu | AA9: 15 | AB9: 2 | AC9: 21 | AD9: 6 | AE9: 76 | AF9: 71.0 % | AG9: 107
X10: 2010 | Y10: 3. | Z10: Manse PP | AA10: 13 | AB10: 3 | AC10: 25 | AD10: 9 | AE10: 66 | AF10: 63.5 % | AG10: 104 | AH10: 6. | AM10: 3 | AN10: 1 | AO10: 8 | AP10: 1 | AQ10: 11 | AR10: 47.8 % | AS10: 23
X11: 2011 | Y11: 6. | Z11: Tahko 2 | AA11: 13 | AB11: 3 | AC11: 32 | AD11: 8 | AE11: 66 | AF11: 62.9 % | AG11: 105 | AH11: 10.
X12: 2012 | Y12: 2. | Z12: Manse PP | AA12: 18 | AB12: 4 | AC12: 43 | AD12: 11 | AE12: 87 | AF12: 54.0 % | AG12: 161 | AH12: 3. | AJ12: 3. | AM12: 5 | AN12: 0 | AO12: 6 | AP12: 0 | AQ12: 15 | AR12: 50.0 % | AS12: 30
X13: 2013 | Y13: 1. | Z13: Manse PP | AA13: 16 | AB13: 2 | AC13: 60 | AD13: 5 | AE13: 91 | AF13: 69.5 % | AG13: 131 | AH13: 3. | AJ13: 5. | AM13: 6 | AN13: 1 | AO13: 17 | AP13: 4 | AQ13: 24 | AR13: 50.0 % | AS13: 48
B14: 2014 | C14: 8. | D14: Manse PP | E14: 20 | F14: 0 | G14: 41 | H14: 2 | I14: 79 | J14: 49.1 % | K14: 161
B15: 2015 | C15: 3. | D15: Manse PP | E15: 24 | F15: 0 | G15: 33 | H15: 1 | I15: 57 | J15: 40.7 % | K15: 140 | L15: 10. | Q15: 8. | R15: 0 | S15: 12 | T15: 0 | U15: 14 | V15: 40.0 % | W15: 35
B16: 2016 | C16: 3. | D16: Manse PP* | E16: 21 | F16: 1 | G16: 47 | H16: 4 | I16: 71 | J16: 43.3 % | K16: 164 | L16: 4. | N16: 8. | Q16: 4 | R16: 0 | S16: 6 | T16: 0 | U16: 9 | V16: 29.0 % | W16: 31
B17: 2017 | C17: 4. | D17: Manse PP* | E17: 7 | F17: 0 | G17: 4 | H17: 0 | I17: 18 | J17: 38.3 % | K17: 47
X18: 2018 | Y18: 1. | Z18: LP | AA18: 10 | AB18: 2 | AC18: 41 | AD18: 6 | AE18: 55 | AF18: 63.2 % | AG18: =PRODUCT(AE18/AF18) -> 87 | AH18: 2. | AJ18: 2. | AM18: 7 | AN18: 1 | AO18: 23 | AP18: 2 | AQ18: 30 | AR18: 53.6 % | AS18: =PRODUCT(AQ18/AR18) -> 56.00149337
X19: 2019 | Y19: 1. | Z19: LP | AA19: 15 | AB19: 1 | AC19: 52 | AD19: 6 | AE19: 72 | AF19: 60.5 % | AG19: 119 | AH19: 3. | AJ19: 3. | AM19: 6 | AN19: 0 | AO19: 25 | AP19: 1 | AQ19: 38 | AR19: 59.4 % | AS19: 64
B21: 2021 | C21: 5. | D21: LP | E21: 16 | F21: 0 | G21: 16 | H21: 1 | I21: 31 | J21: 32.6 % | K21: 95
B22: 2022 | C22: 8. | D22: LP | E22: 15 | F22: 0 | G22: 7 | H22: 2 | I22: 50 | J22: 52.1 % | K22: 96
B23: YHTEENSÄ | E23: =SUM(E4:E22) -> 119 | F23: =SUM(F4:F22) -> 1 | G23: =SUM(G4:G22) -> 163 | H23: =SUM(H4:H22) -> 12 | I23: =SUM(I4:I22) -> 336 | J23: =PRODUCT(I23/K23) -> 43.3 % | K23: =SUM(K4:K22) -> 776 | Q23: =SUM(Q4:Q22) -> 6 | R23: =SUM(R4:R22) -> 0 | S23: =SUM(S4:S22) -> 21 | T23: =SUM(T4:T22) -> 1 | U23: =SUM(U4:U22) -> 28 | V23: =PRODUCT(U23/W23) -> 34.1 % | W23: =SUM(W4:W22) -> 82 | X23: YHTEENSÄ | AA23: =SUM(AA4:AA22) -> 168 | AB23: =SUM(AB4:AB22) -> 33 | AC23: =SUM(AC4:AC22) -> 435 | AD23: =SUM(AD4:AD22) -> 108 | AE23: =SUM(AE4:AE22) -> 853 | AF23: =PRODUCT(AE23/AG23) -> 63.0 % | AG23: =SUM(AG4:AG22) -> 1354.011549 | AM23: =SUM(AM4:AM22) -> 32 | AN23: =SUM(AN4:AN22) -> 5 | AO23: =SUM(AO4:AO22) -> 89 | AP23: =SUM(AP4:AP22) -> 10 | AQ23: =SUM(AQ4:AQ22) -> 139 | AR23: =PRODUCT(AQ23/AS23) -> 53.9 % | AS23: =SUM(AS4:AS22) -> 258.0014934
B25: KAIKKI OTTELUT | E25: OTT | F25: KUN | G25: LÖI | H25: TOI | I25: KL | J25: KL-% | L25: ka/L | M25: ka/T | N25: ka/l+t | O25: ka/kl | R25: Seurat | T25: Paukku = Hämeenlinnan Paukku (1961), kasvattajaseura
B26: SUPERPESIS | E26: 28 | F26: 0 | G26: 40 | H26: 0 | I26: 67 | J26: 39.9 % | K26: =PRODUCT(I26/J26) -> 167.9197995 | L26: =PRODUCT((F26+G26)/E26) -> 1.43 | M26: =PRODUCT(H26/E26) -> 0.00 | N26: =PRODUCT((F26+G26+H26)/E26) -> 1.43 | O26: =PRODUCT(I26/E26) -> 2.39 | T26: Tahko = Hyvinkään Tahko (1915)
B27: YKKÖSPESIS | E27: =PRODUCT(E23+Q23) -> 125 | F27: =PRODUCT(F23+R23) -> 1 | G27: =PRODUCT(G23+S23) -> 184 | H27: =PRODUCT(H23+T23) -> 13 | I27: =PRODUCT(I23+U23) -> 364 | J27: =PRODUCT(I27/K27) -> 42.4 % | K27: =PRODUCT(K23+W23) -> 858 | L27: =PRODUCT((F27+G27)/E27) -> 1.48 | M27: =PRODUCT(H27/E27) -> 0.10 | N27: =PRODUCT((F27+G27+H27)/E27) -> 1.58 | O27: =PRODUCT(I27/E27) -> 2.91 | T27: RiiPe = Riihimäen Pesis (1999)
B28: SUOMENSARJA | E28: =PRODUCT(AA23+AM23) -> 200 | F28: =PRODUCT(AB23+AN23) -> 38 | G28: =PRODUCT(AC23+AO23) -> 524 | H28: =PRODUCT(AD23+AP23) -> 118 | I28: =PRODUCT(AE23+AQ23) -> 992 | J28: =PRODUCT(I28/K28) -> 61.5 % | K28: =PRODUCT(AG23+AS23) -> 1612.013042 | L28: =PRODUCT((F28+G28)/E28) -> 2.81 | M28: =PRODUCT(H28/E28) -> 0.59 | N28: =PRODUCT((F28+G28+H28)/E28) -> 3.40 | O28: =PRODUCT(I28/E28) -> 4.96 | T28: LaLu = Lammin Luja (1939)
B29: YHTEENSÄ | E29: =SUM(E26:E28) -> 353 | F29: =SUM(F26:F28) -> 39 | G29: 748 | H29: 131 | I29: 1423 | J29: =PRODUCT(I29/K29) -> 53.9 % | K29: =SUM(K26:K28) -> 2637.932842 | L29: =PRODUCT((F29+G29)/E29) -> 2.23 | M29: =PRODUCT(H29/E29) -> 0.37 | N29: =PRODUCT((F29+G29+H29)/E29) -> 2.60 | O29: =PRODUCT(I29/E29) -> 4.03 | T29: Manse PP = Manse PP, Tampere (2005)
T30: Manse PP* = Manse PP Edustus (2015)
T31: LP = Loimaan Palloilijat Junioripesis (2003)

Sheet Arvo-ottelut
B1: ITÄ - LÄNSI - KORTTI
B2: Tommi Malinen | C2: 20.8.1987 Savonlinna
B3: B - POJAT | C3: Itä - Länsi, tulos | D3: Joukkue | E3: Seura | G3: V | H3: T | I3: H | J3: Up. | K3: Lj. | L3: Palk. | M3: O | N3: K | O3: L | P3: T | Q3: KL | R3: 1 | S3: 2 | T3: 3 | U3: k | V3: KL-% | W3: Pelinjohtaja | X3: Yleisöä
B4: 02.07. 2005 Oulu | C4: 0-1 (4-4, 0-1) | D4: Länsi | E4: Paukku | G4: 1 | J4: 3v | K4: 5 | M4: 1 | Q4: 2/6 | S4: 1/2 | T4: 1/3 | U4: 0/1 | V4: 33.3 % | W4: Tommi Joensuu | X4: 1318

Sheet Kärkilyönnit
B1: KÄRKILYÖNNIT RUNKOSARJASSA | V1: VUOSITTAISET SIJOITUKSET TOP - 30
G2: 0 > 1 | J2: 1 > 2 | M2: 2 > 3 | P2: 3 > k | S2: Yhteensä
B3: Vuosi | C3: Sija | D3: Seura | E3: OTT | F3: KL | G3: YHT | H3: % | I3: KL | J3: YHT | K3: % | L3: KL | M3: YHT | N3: % | O3: KL | P3: YHT | Q3: % | R3: KL | S3: YHT | T3: % | V3: Vuosi | W3: Sija | X3: Seura | Y3: 0 > 1 | Z3: 1 > 2 | AA3: 2 > 3 | AB3: 3 > k | AC3: KL
B4: 2020 | C4: 12. | D4: Manse PP | E4: 19 | F4: 1 | G4: 3 | H4: 33.3 % | I4: 5 | J4: 9 | K4: 55.6 % | L4: 9 | M4: 23 | N4: 39.1 % | O4: 29 | P4: 75 | Q4: 38.7 % | R4: 44 | S4: 110 | T4: 40.0 % | AB4: 27.
B5: Yhteensä | E5: =SUM(E4:E4) -> 19 | F5: =SUM(F4:F4) -> 1 | G5: =SUM(G4:G4) -> 3 | H5: =PRODUCT(F5/G5) -> 33.3 % | I5: =SUM(I4:I4) -> 5 | J5: =SUM(J4:J4) -> 9 | K5: =PRODUCT(I5/J5) -> 55.6 % | L5: =SUM(L4:L4) -> 9 | M5: =SUM(M4:M4) -> 23 | N5: =PRODUCT(L5/M5) -> 39.1 % | O5: =SUM(O4:O4) -> 29 | P5: =SUM(P4:P4) -> 75 | Q5: =PRODUCT(O5/P5) -> 38.7 % | R5: =SUM(R4:R4) -> 44 | S5: =SUM(S4:S4) -> 110 | T5: =PRODUCT(R5/S5) -> 40.0 %
